fUST/lending_fUST_20250911
["ID","MTS","AMOUNT","RATE_DAILY","PERIOD"]
[384819621,1757572245782,-2826.24,0.00015068,2]
[384819622,1757572245791,-480.0,0.00015068,2]
[384819623,1757572245801,-480.0,0.00015068,2]
[384819624,1757572245810,-480.0,0.00015068,2]
[384819625,1757572245819,-480.0,0.00015068,2]
[384819626,1757572245828,-275.92570471,0.00015068,2]
[384819627,1757572245837,-965.33,0.00015068,2]
[384819628,1757572245846,-480.0,0.00015068,2]
[384819629,1757572245855,-674.4,0.00015068,2]
[384819631,1757572245864,-1006.35,0.00015068,2]
[384819633,1757572245874,-480.0,0.00015068,2]
[384819634,1757572245884,-480.0,0.00015068,2]
[384819635,1757572245894,-439.53,0.00015068,2]
[384819636,1757572245905,-4332.2,0.00015068,2]
[384819637,1757572245915,-525.42,0.00015068,2]
[384819638,1757572245925,-480.0,0.00015068,2]
[384819639,1757572245934,-787.0,0.00015068,2]
[384819640,1757572245943,-480.0,0.00015068,2]
[384819641,1757572245952,-3320.6,0.00015068,2]
[384819642,1757572245962,-480.0,0.00015068,2]
[384819643,1757572245971,-1500.0,0.00015068,2]
[384819644,1757572245981,-1500.0,0.00015068,2]
[384819645,1757572245990,-411.06922566,0.00015068,2]
[384819646,1757572246000,-1500.0,0.00015068,2]
[384819647,1757572246009,-1500.0,0.00015068,2]
[384819648,1757572246018,-506.81842861,0.00015068,2]
[384819649,1757572246028,-1500.0,0.00015068,2]
[384819650,1757572246037,-1500.0,0.00015068,2]
[384819651,1757572246046,-1500.0,0.00015068,2]
[384819652,1757572246055,-1500.0,0.00015068,2]
[384819653,1757572246065,-276.871029,0.00015068,2]
[384819654,1757572246075,-500.0,0.00015068,2]
[384819655,1757572246084,-1000.0,0.00015073,2]
[384819656,1757572246093,-151.0,0.00015105,2]
[384819659,1757572246176,-151.0,0.00015105,2]
[384819661,1757572246186,-151.0,0.00015105,2]
[384819662,1757572246195,-151.0,0.00015105,2]
[384819663,1757572246204,-151.0,0.00015105,2]
[384819664,1757572246215,-151.0,0.00015105,2]
[384819665,1757572246224,-151.0,0.00015105,2]
[384819666,1757572246234,-390.096317,0.00015105,2]
[384819667,1757572246244,-390.096317,0.00015105,2]
[384819668,1757572246253,-390.096317,0.00015105,2]
[384819670,1757572246262,-390.096317,0.00015105,2]
[384819672,1757572246271,-306.453893,0.00015105,2]
[384819674,1757572246280,-306.453893,0.00015105,2]
[384819675,1757572246290,-306.453893,0.00015105,2]
[384819676,1757572246299,-306.453893,0.00015105,2]
[384819677,1757572246308,-151.0,0.00015105,2]
[384819678,1757572246318,-151.0,0.00015105,2]
[384819679,1757572246327,-151.0,0.00015105,2]
[384819680,1757572246336,-151.0,0.00015105,2]
[384819681,1757572246345,-151.0,0.00015105,2]
[384819682,1757572246354,-151.0,0.00015105,2]
[384819683,1757572246363,-1000.0,0.00015273,2]
[384819685,1757572246373,-483.26090418,0.00015273,2]
[384819686,1757572246382,-186.0,0.00015275,2]
[384819688,1757572246392,-157.0,0.00015275,2]
[384819690,1757572246402,-480.0,0.00015342,2]
[384819691,1757572246411,-1164.99,0.00015342,2]
[384819693,1757572246423,-480.0,0.00015342,2]
[384819695,1757572246433,-480.0,0.00015342,2]
[384819696,1757572246442,-482.61,0.00015342,2]
[384819697,1757572246452,-480.0,0.00015342,2]
[384819698,1757572246461,-2160.88,0.00015342,2]
[384819699,1757572246471,-480.0,0.00015342,2]
[384819700,1757572246480,-2826.24,0.00015342,2]
[384819701,1757572246490,-455.64765956,0.00015342,2]
[384819703,1757572246500,-480.0,0.00015342,2]
[384819705,1757572246510,-480.0,0.00015342,2]
[384819707,1757572246520,-151.0,0.00015342,2]
[384819708,1757572246530,-480.0,0.00015342,2]
[384819709,1757572246540,-965.33,0.00015342,2]
[384819710,1757572246549,-480.0,0.00015342,2]
[384819711,1757572246559,-674.4,0.00015342,2]
[384819712,1757572246570,-151.0,0.00015342,2]
[384819714,1757572246580,-1257.695416,0.00015342,2]
[384819716,1757572246589,-1257.695416,0.00015342,2]
[384819717,1757572246600,-1257.695416,0.00015342,2]
[384819718,1757572246609,-1257.695416,0.00015342,2]
[384819719,1757572246620,-1006.35,0.00015342,2]
[384819720,1757572246629,-480.0,0.00015342,2]
[384819721,1757572246639,-480.0,0.00015342,2]
[384819722,1757572246649,-4332.2,0.00015342,2]
[384819723,1757572246658,-525.42,0.00015342,2]
[384819724,1757572246668,-480.0,0.00015342,2]
[384819725,1757572246678,-787.0,0.00015342,2]
[384819726,1757572246688,-423.89523,0.00015342,2]
[384819727,1757572246698,-423.89523,0.00015342,2]
[384819728,1757572246707,-423.89523,0.00015342,2]
[384819729,1757572246718,-423.89523,0.00015342,2]
[384819730,1757572246727,-480.0,0.00015342,2]
[384819731,1757572246737,-3320.6,0.00015342,2]
[384819732,1757572246747,-480.0,0.00015342,2]
[384819733,1757572246756,-220.134267,0.00015342,2]
[384819734,1757572246765,-220.134267,0.00015342,2]
[384819735,1757572246774,-220.134267,0.00015342,2]
[384819736,1757572246784,-220.134267,0.00015342,2]
[384819737,1757572246793,-500.0,0.000155,2]
[384819738,1757572246802,-28420.87208556,0.000155,2]
[384819739,1757572246811,-186.0,0.00015549,2]
[384819740,1757572246820,-480.0,0.00015616,2]
[384819741,1757572246829,-1164.99,0.00015616,2]
[384819742,1757572246839,-245.80634212,0.00015616,2]
[384819743,1757572246848,-151.0,0.00015616,2]
[384819744,1757572246857,-151.0,0.00015616,2]
[384819745,1757572246867,-151.0,0.00015616,2]
[384819746,1757572246876,-151.0,0.00015616,2]
[384819747,1757572246885,-151.0,0.00015616,2]
[384819748,1757572246895,-151.0,0.00015616,2]
[384819749,1757572246905,-341.609263,0.00015616,2]
[384819750,1757572246915,-341.609263,0.00015616,2]
[384819751,1757572246924,-341.609263,0.00015616,2]
[384819752,1757572246934,-151.0,0.00015616,2]
[384819753,1757572246944,-341.609263,0.00015616,2]
[384819754,1757572246955,-151.0,0.00015616,2]
[384819755,1757572246964,-151.0,0.00015616,2]
[384819756,1757572246973,-151.0,0.00015616,2]
[384819757,1757572246983,-151.0,0.00015616,2]
[384819758,1757572246993,-151.0,0.00015616,2]
[384819759,1757572247003,-480.0,0.00015616,2]
[384819760,1757572247013,-151.0,0.00015616,2]
[384819761,1757572247023,-151.0,0.00015616,2]
[384819762,1757572247032,-151.0,0.00015616,2]
[384819763,1757572247041,-252.213303,0.00015616,2]
[384819764,1757572247050,-252.213303,0.00015616,2]
[384819765,1757572247060,-252.213303,0.00015616,2]
[384819766,1757572247070,-252.213303,0.00015616,2]
[384819767,1757572247080,-151.0,0.00015616,2]
[384819768,1757572247089,-151.0,0.00015616,2]
[384819769,1757572247098,-151.0,0.00015616,2]
[384819770,1757572247108,-151.0,0.00015616,2]
[384819771,1757572247117,-482.61,0.00015616,2]
[384819772,1757572247126,-151.0,0.00015616,2]
[384819773,1757572247135,-151.0,0.00015616,2]
[384819774,1757572247145,-151.0,0.00015616,2]
[384819775,1757572247154,-151.0,0.00015616,2]
[384819776,1757572247163,-236.298328,0.00015616,2]
[384819777,1757572247173,-151.0,0.00015616,2]
[384819778,1757572247182,-151.0,0.00015616,2]
[384819779,1757572247191,-151.0,0.00015616,2]
[384819780,1757572247200,-151.0,0.00015616,2]
[384819781,1757572247209,-151.0,0.00015616,2]
[384819782,1757572247220,-200.176203,0.00015616,2]
[384819783,1757572247229,-293.016291,0.00015616,2]
[384819784,1757572247239,-200.176203,0.00015616,2]
[384819785,1757572247248,-293.016291,0.00015616,2]
[384819786,1757572247257,-200.176203,0.00015616,2]
[384819787,1757572247266,-293.016291,0.00015616,2]
[384819788,1757572247276,-200.176203,0.00015616,2]
[384819789,1757572247286,-293.016291,0.00015616,2]
[384819790,1757572247296,-151.0,0.00015616,2]
[384819791,1757572247305,-2160.88,0.00015616,2]
[384819792,1757572247315,-480.0,0.00015616,2]
[384819793,1757572247324,-2826.24,0.00015616,2]
[384819794,1757572247334,-480.0,0.00015616,2]
[384819795,1757572247343,-480.0,0.00015616,2]
[384819796,1757572247352,-480.0,0.00015616,2]
[384819797,1757572247363,-965.33,0.00015616,2]
[384819798,1757572247372,-480.0,0.00015616,2]
[384819799,1757572247381,-674.4,0.00015616,2]
[384819800,1757572247390,-1006.35,0.00015616,2]
[384819801,1757572247400,-480.0,0.00015616,2]
[384819802,1757572247410,-480.0,0.00015616,2]
[384819803,1757572247421,-4332.2,0.00015616,2]
[384819804,1757572247433,-525.42,0.00015616,2]
[384819805,1757572247442,-480.0,0.00015616,2]
[384819806,1757572247451,-787.0,0.00015616,2]
[384819807,1757572247460,-480.0,0.00015616,2]
[384819808,1757572247470,-3320.6,0.00015616,2]
[384819809,1757572247480,-480.0,0.00015616,2]
[384819810,1757572247489,-2000.0,0.00015616,2]
[384819811,1757572247499,-2000.0,0.00015616,2]
[384819812,1757572247508,-2000.0,0.00015616,2]
[384819813,1757572247517,-602.98973203,0.00015616,2]
[384819814,1757572247527,-2000.0,0.00015616,2]
[384819815,1757572247536,-511.64646584,0.00015616,2]
[384819816,1757572247545,-2000.0,0.00015616,2]
[384819817,1757572247555,-2000.0,0.00015616,2]
[384819818,1757572247564,-1500.0,0.00015621,2]
[384819819,1757572247573,-720.0,0.00015675,2]
[384819820,1757572247583,-3000.0,0.0001578,2]
[384819821,1757572247592,-250.0,0.00015801,2]
[384819822,1757572247670,-1504.63130133,0.00015821,2]
[384819823,1757572247680,-480.0,0.0001589,2]
[384819824,1757572247689,-151.369575,0.0001589,2]
[384819825,1757572247699,-1164.99,0.0001589,2]
[384819826,1757572247708,-480.0,0.0001589,2]
[384819827,1757572247717,-482.61,0.0001589,2]
[384819828,1757572247726,-2160.88,0.0001589,2]
[384819829,1757572247735,-480.0,0.0001589,2]
[384819830,1757572247744,-2826.24,0.0001589,2]
[384819831,1757572247754,-480.0,0.0001589,2]
[384819832,1757572247763,-480.0,0.0001589,2]
[384819833,1757572247773,-480.0,0.0001589,2]
[384819834,1757572247782,-965.33,0.0001589,2]
[384819835,1757572247793,-480.0,0.0001589,2]
[384819836,1757572247803,-674.4,0.0001589,2]
[384819837,1757572247812,-1006.35,0.0001589,2]
[384819838,1757572247822,-573.55101016,0.0001589,2]
[384819839,1757572247832,-480.0,0.0001589,2]
[384819840,1757572247842,-4332.2,0.0001589,2]
[384819841,1757572247852,-525.42,0.0001589,2]
[384819842,1757572247861,-480.0,0.0001589,2]
[384819843,1757572247870,-787.0,0.0001589,2]
[384819844,1757572247879,-480.0,0.0001589,2]
[384819845,1757572247889,-276.4653932,0.0001589,2]
[384819846,1757572248072,-754.69376073,0.00013598,2]
[384819847,1757572248082,-3044.1346068,0.0001589,2]
[384819848,1757572248092,-480.0,0.0001589,2]
[384819849,1757572248101,-2485.90070892,0.00015927,2]
[384819850,1757572248111,-1010.80394093,0.00016048,2]
[384819851,1757572248120,-480.0,0.00016164,2]
[384819852,1757572248130,-151.0,0.00016164,2]
[384819853,1757572248139,-151.0,0.00016164,2]
[384819854,1757572248149,-151.0,0.00016164,2]
[384819855,1757572248158,-151.0,0.00016164,2]
[384819856,1757572248168,-152.048419,0.00016164,2]
[384819857,1757572248177,-151.0,0.00016164,2]
[384819858,1757572248187,-151.0,0.00016164,2]
[384819859,1757572248197,-151.0,0.00016164,2]
[384819860,1757572248206,-151.0,0.00016164,2]
[384819861,1757572248216,-224.741966,0.00016164,2]
[384819862,1757572248225,-151.0,0.00016164,2]
[384819863,1757572248235,-1164.99,0.00016164,2]
[384819864,1757572248245,-151.0,0.00016164,2]
[384819865,1757572248254,-155.476895,0.00016164,2]
[384819866,1757572248264,-174.076274,0.00016164,2]
[384819867,1757572248273,-151.0,0.00016164,2]
[384819868,1757572248282,-152.89496,0.00016164,2]
[384819869,1757572248291,-480.0,0.00016164,2]
[384819870,1757572248300,-482.61,0.00016164,2]
[384819871,1757572248310,-2160.88,0.00016164,2]
[384819872,1757572248319,-247.00926289,0.00016164,2]
[384819873,1757572248331,-232.99073711,0.00016164,2]
[384819874,1757572248340,-222.71343385,0.00016164,2]
[384819875,1757572248398,549.1552618,0.00012205,2]
[384819876,1757572248450,1000.0,0.00012895,2]
[384819877,1757572248919,-289.54641168,0.00013698,2]
[384819878,1757572248931,-190.45358832,0.00013698,2]
[384819879,1757572248940,-86.71219602,0.00013698,2]
[384819880,1757572249060,208.92,0.00012329,2]
[384819881,1757572249133,-393.28780398,0.00013698,2]
[384819882,1757572249144,-480.0,0.00013698,2]
[384819883,1757572249154,-197.0,0.00013698,2]
[384819884,1757572249164,-480.0,0.00013698,2]
[384819885,1757572249173,-300.0,0.00013698,2]
[384819886,1757572249183,-480.0,0.00013698,2]
[384819887,1757572249193,-480.0,0.00013698,2]
[384819888,1757572249202,-194.84226526,0.00013698,2]
[384819889,1757572249212,-522.20360503,0.00013698,2]
[384819890,1757572249221,-500.0,0.00014246,2]
[384819891,1757572249230,-754.6937607,0.00015749,2]
[384819892,1757572249240,-1761.24799504,0.00016164,2]
[384819893,1757572249252,-842.27857111,0.00016164,2]
[384819894,1757572249262,-160.75497217,0.00016164,2]
[384819895,1757572249271,-480.0,0.00016164,2]
[384819896,1757572249281,-480.0,0.00016164,2]
[384819897,1757572249291,-167.03774558,0.00016164,2]
[384819898,1757572249303,-798.29225442,0.00016164,2]
[384819899,1757572249314,-480.0,0.00016164,2]
[384819900,1757572249323,-674.4,0.00016164,2]
[384819901,1757572249333,-1006.35,0.00016164,2]
[384819902,1757572249342,-480.0,0.00016164,2]
[384819903,1757572249352,-4332.2,0.00016164,2]
[384819904,1757572249362,-525.42,0.00016164,2]
[384819905,1757572249372,-480.0,0.00016164,2]
[384819906,1757572249382,-787.0,0.00016164,2]
[384819907,1757572249391,-480.0,0.00016164,2]
[384819908,1757572249401,-3320.6,0.00016164,2]
[384819909,1757572249411,-480.0,0.00016164,2]
[384819910,1757572249421,-757.05422029,0.00016164,2]
[384819911,1757572249431,-2500.0,0.00016164,2]
[384819912,1757572249441,-2500.0,0.00016164,2]
[384819913,1757572249451,-458.30515009,0.00016164,2]
[384819914,1757572249464,-2500.0,0.00016164,2]
[384819915,1757572249473,-2500.0,0.00016164,2]
[384819916,1757572249484,-1000.0,0.00016164,2]
[384819917,1757572249493,-1006.11662782,0.00016169,2]
[384819918,1757572249505,-151.0,0.000162,2]
[384819919,1757572249515,-556.7983587,0.00016247,2]
[384819920,1757572249526,-500.0,0.0001638,2]
[384819921,1757572249536,-500.0,0.0001638,2]
[384819922,1757572249548,-500.0,0.0001638,2]
[384819923,1757572249557,-500.0,0.0001638,2]
[384819924,1757572249567,-500.40085267,0.0001638,2]
[384819925,1757572249577,-500.0,0.0001638,2]
[384819926,1757572249587,-500.0,0.0001638,2]
[384819927,1757572249596,-500.0,0.0001638,2]
[384819928,1757572249606,-158.09301393,0.0001638,2]
[384819929,1757572249616,-160.05345634,0.0001638,2]
[384819930,1757572249626,-500.0,0.0001638,2]
[384819931,1757572249635,-500.0,0.0001638,2]
[384819932,1757572249644,-500.0,0.0001638,2]
[384819933,1757572249653,-500.0,0.0001638,2]
[384819934,1757572249663,-3000.0,0.000164,2]
[384819935,1757572249673,-3000.0,0.000164,2]
[384819936,1757572249682,-3000.0,0.000164,2]
[384819937,1757572249692,-151.0,0.000164,2]
[384819938,1757572249702,-152.016187,0.000164,2]
[384819939,1757572249711,-151.0,0.000164,2]
[384819940,1757572249721,-151.0,0.000164,2]
[384819941,1757572249732,-520.0,0.00016438,3]
[384819942,1757572249742,-520.0,0.00016438,3]
[384819943,1757572249752,-520.0,0.00016438,3]
[384819944,1757572249761,-520.0,0.00016438,3]
[384819945,1757572249771,-384.6663081,0.00016438,3]
[384819946,1757572249780,-480.0,0.00016438,2]
[384819947,1757572249789,-151.0,0.00016438,2]
[384819948,1757572249800,-151.0,0.00016438,2]
[384819949,1757572249810,-151.0,0.00016438,2]
[384819950,1757572249820,-151.0,0.00016438,2]
[384819951,1757572249831,-151.0,0.00016438,2]
[384819952,1757572249842,-151.0,0.00016438,2]
[384819953,1757572249851,-1164.99,0.00016438,2]
[384819954,1757572249860,-480.0,0.00016438,2]
[384819955,1757572249869,-500.0,0.00016438,2]
[384819956,1757572249879,-482.61,0.00016438,2]
[384819957,1757572249888,-480.0,0.00016438,2]
[384819958,1757572249898,-2826.24,0.00016438,2]
[384819959,1757572249907,-480.0,0.00016438,2]
[384819960,1757572249916,-480.0,0.00016438,2]
[384819961,1757572249926,-965.33,0.00016438,2]
[384819962,1757572249936,-480.0,0.00016438,2]
[384819963,1757572249946,-674.4,0.00016438,2]
[384819964,1757572249955,-1006.35,0.00016438,2]
[384819965,1757572249965,-480.0,0.00016438,2]
[384819966,1757572249974,-151.0,0.00016438,2]
[384819967,1757572249985,-151.0,0.00016438,2]
[384819968,1757572249995,-151.0,0.00016438,2]
[384819969,1757572250004,-151.0,0.00016438,2]
[384819970,1757572250014,-189.681566,0.00016438,2]
[384819971,1757572250023,-390.096317,0.00016438,2]
[384819972,1757572250033,-390.096317,0.00016438,2]
[384819973,1757572250042,-390.096317,0.00016438,2]
[384819974,1757572250051,-390.096317,0.00016438,2]
[384819975,1757572250060,-306.453893,0.00016438,2]
[384819976,1757572250069,-306.453893,0.00016438,2]
[384819977,1757572250079,-306.453893,0.00016438,2]
[384819978,1757572250088,-306.453893,0.00016438,2]
[384819979,1757572250098,-151.0,0.00016438,2]
[384819980,1757572250107,-217.911978,0.00016438,2]
[384819981,1757572250183,-151.0,0.00016438,2]
[384819982,1757572250192,-4332.2,0.00016438,2]
[384819983,1757572250201,-525.42,0.00016438,2]
[384819984,1757572250211,-151.0,0.00016438,2]
[384819985,1757572250220,-151.0,0.00016438,2]
[384819986,1757572250229,-480.0,0.00016438,2]
[384819987,1757572250238,-787.0,0.00016438,2]
[384819988,1757572250247,-423.89523,0.00016438,2]
[384819989,1757572250257,-423.89523,0.00016438,2]
[384819990,1757572250266,-423.89523,0.00016438,2]
[384819991,1757572250276,-423.89523,0.00016438,2]
[384819992,1757572250285,-480.0,0.00016438,2]
[384819993,1757572250295,-3320.6,0.00016438,2]
[384819994,1757572250304,-480.0,0.00016438,2]
[384819995,1757572250313,-220.134267,0.00016438,2]
[384819996,1757572250322,-220.134267,0.00016438,2]
[384819997,1757572250332,-220.134267,0.00016438,2]
[384819998,1757572250341,-220.134267,0.00016438,2]
[384819999,1757572250350,-151.0,0.00016438,2]
[384820000,1757572250359,-151.0,0.00016438,2]
[384820001,1757572250369,-151.0,0.00016438,2]
[384820002,1757572250378,-151.0,0.00016438,2]
[384820003,1757572250387,-151.0,0.00016438,2]
[384820004,1757572250396,-151.0,0.00016438,2]
[384820005,1757572250406,-151.0,0.00016438,2]
[384820006,1757572250415,-151.0,0.00016438,2]
[384820007,1757572250424,-151.652358,0.00016438,2]
[384820008,1757572250433,-555.41173801,0.00016444,2]
[384820009,1757572250443,-500.0,0.00016444,2]
[384820010,1757572250454,-500.11392794,0.00016495,2]
[384820011,1757572250463,-500.0,0.00016495,2]
[384820012,1757572250472,-500.0,0.00016495,2]
[384820013,1757572250481,-549.49999951,0.000165,2]
[384820014,1757572250490,-500.0,0.00016504,2]
[384820015,1757572250500,-546.20460748,0.00016504,2]
[384820016,1757572250509,-500.0,0.00016504,2]
[384820017,1757572250518,-501.02762067,0.00016504,2]
[384820018,1757572250527,-500.0,0.00016504,2]
[384820019,1757572250536,-500.0,0.00016504,2]
[384820020,1757572250545,-500.55733955,0.00016504,2]
[384820021,1757572250555,-151.0,0.00016504,2]
[384820022,1757572250564,-151.0,0.00016504,2]
[384820023,1757572250573,-1257.695416,0.00016504,2]
[384820024,1757572250583,-1257.695416,0.00016504,2]
[384820025,1757572250592,-1257.695416,0.00016504,2]
[384820026,1757572250602,-1257.695416,0.00016504,2]
[384820027,1757572250612,-297.995147,0.0001655,2]
[384820028,1757572250621,-151.0,0.00016582,2]
[384820029,1757572250630,-151.0,0.00016582,2]
[384820030,1757572250639,-151.0,0.00016582,2]
[384820031,1757572250648,-151.0,0.00016582,2]
[384820032,1757572250658,-151.0,0.00016582,2]
[384820033,1757572250667,-151.0,0.00016582,2]
[384820034,1757572250676,-151.0,0.00016582,2]
[384820035,1757572250685,-151.0,0.00016582,2]
[384820036,1757572250694,-289.065287,0.00016582,2]
[384820037,1757572250703,-151.0,0.00016582,2]
[384820038,1757572250713,-200.176203,0.00016582,2]
[384820039,1757572250722,-293.016291,0.00016582,2]
[384820040,1757572250732,-200.176203,0.00016582,2]
[384820041,1757572250741,-293.016291,0.00016582,2]
[384820042,1757572250750,-200.176203,0.00016582,2]
[384820043,1757572250759,-293.016291,0.00016582,2]
[384820044,1757572250768,-200.176203,0.00016582,2]
[384820045,1757572250779,-293.016291,0.00016582,2]
[384820046,1757572250789,-151.0,0.00016582,2]
[384820047,1757572250798,-4474.5049343,0.00016582,2]
[384820048,1757572250807,-160.0,0.00016585,2]
[384820049,1757572250817,-600.0,0.00016663,2]
[384820050,1757572250826,-500.0,0.00016712,2]
[384820051,1757572250835,-480.0,0.00016712,2]
[384820052,1757572250844,-1164.99,0.00016712,2]
[384820053,1757572250853,-480.0,0.00016712,2]
[384820054,1757572250862,-151.0,0.00016712,2]
[384820055,1757572250872,-252.213303,0.00016712,2]
[384820056,1757572250881,-252.213303,0.00016712,2]
[384820057,1757572250890,-252.213303,0.00016712,2]
[384820058,1757572250900,-151.0,0.00016712,2]
[384820059,1757572250909,-252.213303,0.00016712,2]
[384820060,1757572250918,-151.0,0.00016712,2]
[384820061,1757572250927,-151.0,0.00016712,2]
[384820062,1757572250936,-482.61,0.00016712,2]
[384820063,1757572250946,-480.0,0.00016712,2]
[384820064,1757572250955,-2826.24,0.00016712,2]
[384820065,1757572250964,-480.0,0.00016712,2]
[384820066,1757572250972,-480.0,0.00016712,2]
[384820067,1757572250982,-965.33,0.00016712,2]
[384820069,1757572250991,-480.0,0.00016712,2]
[384820070,1757572251000,-674.4,0.00016712,2]
[384820071,1757572251009,-1006.35,0.00016712,2]
[384820072,1757572251018,-480.0,0.00016712,2]
[384820073,1757572251028,-4332.2,0.00016712,2]
[384820074,1757572251037,-525.42,0.00016712,2]
[384820075,1757572251046,-480.0,0.00016712,2]
[384820076,1757572251055,-787.0,0.00016712,2]
[384820077,1757572251064,-480.0,0.00016712,2]
[384820078,1757572251074,-3320.6,0.00016712,2]
[384820079,1757572251083,-480.0,0.00016712,2]
[384820080,1757572251091,-2626.05951837,0.00016712,2]
[384820081,1757572251101,-3000.0,0.00016712,2]
[384820082,1757572251111,-2303.40191391,0.00016712,2]
[384820083,1757572251119,-3000.0,0.00016712,2]
[384820084,1757572251129,-602.99895754,0.00016836,2]
[384820085,1757572251138,-151.0,0.000169,2]
[384820086,1757572251147,-1000.0,0.00016928,2]
[384820087,1757572251159,-500.73570168,0.00016928,2]
[384820088,1757572251168,-1000.94416666,0.00016928,2]
[384820089,1757572251177,-1000.0,0.00016928,2]
[384820090,1757572251188,-1000.0,0.00016928,2]
[384820091,1757572251197,-1000.0,0.00016928,2]
[384820092,1757572251207,-1000.0,0.00016928,2]
[384820093,1757572251216,-1001.12389949,0.00016928,2]
[384820094,1757572251226,-1001.68873097,0.00016928,2]
[384820095,1757572251235,-1000.0,0.00016928,2]
[384820096,1757572251245,-500.74644024,0.00016928,2]
[384820097,1757572251254,-2485.90070892,0.00016955,2]
[384820098,1757572251263,-510.04432197,0.00016986,2]
[384820099,1757572251272,-480.0,0.00016986,2]
[384820100,1757572251281,-1164.99,0.00016986,2]
[384820101,1757572251290,-151.0,0.00016986,2]
[384820102,1757572251299,-151.0,0.00016986,2]
[384820103,1757572251309,-151.0,0.00016986,2]
[384820104,1757572251381,-151.0,0.00016986,2]
[384820105,1757572251392,-151.0,0.00016986,2]
[384820106,1757572251401,-341.609263,0.00016986,2]
[384820107,1757572251411,-341.609263,0.00016986,2]
[384820108,1757572251425,-341.609263,0.00016986,2]
[384820109,1757572251436,-151.0,0.00016986,2]
[384820110,1757572251446,-341.609263,0.00016986,2]
[384820111,1757572251464,-151.0,0.00016986,2]
[384820112,1757572251474,-151.0,0.00016986,2]
[384820113,1757572251483,-151.0,0.00016986,2]
[384820114,1757572251492,-151.0,0.00016986,2]
[384820115,1757572251502,-151.0,0.00016986,2]
[384820116,1757572251512,-151.0,0.00016986,2]
[384820117,1757572251528,-480.0,0.00016986,2]
[384820118,1757572251539,-151.0,0.00016986,2]
[384820119,1757572251548,-482.61,0.00016986,2]
[384820120,1757572251558,-480.0,0.00016986,2]
[384820121,1757572251567,-2826.24,0.00016986,2]
[384820122,1757572251577,-480.0,0.00016986,2]
[384820123,1757572251587,-480.0,0.00016986,2]
[384820124,1757572251597,-965.33,0.00016986,2]
[384820125,1757572251606,-480.0,0.00016986,2]
[384820126,1757572251615,-674.4,0.00016986,2]
[384820127,1757572251625,-1006.35,0.00016986,2]
[384820128,1757572251635,-480.0,0.00016986,2]
[384820129,1757572251644,-4332.2,0.00016986,2]
[384820130,1757572251653,-525.42,0.00016986,2]
[384820131,1757572251663,-480.0,0.00016986,2]
[384820132,1757572251672,-787.0,0.00016986,2]
[384820133,1757572251681,-480.0,0.00016986,2]
[384820134,1757572251690,-3320.6,0.00016986,2]
[384820135,1757572251700,-480.0,0.00016986,2]
[384820136,1757572251710,-1097.60557094,0.00016992,2]
[384820137,1757572251719,-6635.22418785,0.00017008,2]
[384820138,1757572251729,-407.43044077,0.00017009,2]
[384820139,1757572251738,-211.667185,0.00017041,2]